bitfinex/quotes_ETHUSD_20251111
["timestamp","ask_amount","ask_price","bid_price","bid_amount"]
[1762879151221,2.87167151,3482.3,3481.8,1.6745]
[1762879151389,2.87175527,3482.2,3481.8,1.6745]
[1762879151783,0.4938,3482.5,3481.8,1.6745]
[1762879151984,0.2015,3482.9,3481.8,5.04427766]
[1762879152320,0.01,3482.9,3481.8,6.61224323]
[1762879152511,0.0092,3481.9,3481.8,6.58352246]
[1762879152706,0.0092,3481.9,3481.8,8.20738041]
[1762879154542,0.0092,3481.9,3481.8,7.52338041]
[1762879154845,0.0092,3481.9,3481.8,8.20638041]
[1762879155742,0.0092,3481.9,3481.8,7.52338041]
[1762879155942,0.0092,3481.9,3481.8,8.20638041]
[1762879156257,0.0092,3481.9,3481.8,4.24579875]
[1762879156438,0.0092,3481.9,3481.8,5.67931846]
[1762879156750,0.0092,3481.9,3481.8,1.6735]
[1762879157101,0.0092,3481.9,3481.8,0.5]
[1762879157102,0.0112,3481.9,3481.8,0.5]
[1762879157221,0.0112,3481.9,3481.8,1.183]
[1762879157764,0.0112,3481.9,3481.8,5.04327766]
[1762879158057,0.0112,3481.9,3481.8,7.39249706]
[1762879158213,0.0112,3481.9,3481.8,6.98699306]
[1762879158752,0.0112,3481.9,3481.8,6.48929306]
[1762879159461,0.0112,3481.9,3481.8,6.98699306]
[1762879159614,0.0112,3481.9,3481.8,6.30399306]
[1762879159816,0.0112,3481.9,3481.8,6.98699306]
[1762879161146,0.0112,3481.9,3481.8,7.39249706]
[1762879167862,1e-08,3481.9,3481.8,17.63527706]
[1762879168181,1e-08,3481.9,3481.8,14.10965806]
[1762879168738,1e-08,3481.9,3481.8,12.39309006]
[1762879171288,1e-08,3481.9,3481.8,9.96052006]
[1762879171454,1e-08,3481.9,3481.8,12.48452406]
[1762879172465,0.002,3482.3,3482.2,3.27725174]
[1762879172668,0.002,3482.3,3482.2,12.68787917]
[1762879172888,0.002,3482.3,3482.2,17.08051917]
[1762879173479,0.002,3482.3,3482.2,18.33627217]
[1762879174094,0.002,3482.3,3482.2,16.09577317]
[1762879174290,0.002,3482.3,3482.2,17.68105578]
[1762879174452,0.002,3482.3,3482.2,23.90402878]
[1762879174650,1e-08,3482.9,3482.8,0.900804]
[1762879174849,1e-08,3482.9,3482.8,12.57200659]
[1762879175081,1e-08,3482.9,3482.8,21.39104059]
[1762879175282,1e-08,3482.9,3482.8,24.10442909]
[1762879175483,1e-08,3482.9,3482.8,15.75789509]
[1762879175687,1e-08,3482.9,3482.8,18.23539609]
[1762879176266,0.00120001,3483.6,3483.5,4.27148004]
[1762879176466,0.00120001,3483.6,3483.5,6.08822084]
[1762879176758,0.00120001,3483.6,3483.5,6.98411963]
[1762879177954,0.00120001,3483.6,3483.5,6.48881963]
[1762879178283,0.41770001,3483.6,3483.5,6.08331563]
[1762879178458,0.00120001,3483.6,3483.5,6.08331563]
[1762879178791,0.41840001,3483.6,3483.5,2.07889879]
[1762879179016,0.90520001,3483.6,3483.5,1.183]
[1762879179679,0.90520001,3483.6,3483.5,0.5]
[1762879179886,3.77579364,3483.6,3483.5,1.183]
[1762879180089,1.23666263,3483.6,3483.5,0.683]
[1762879180381,3.77579364,3483.6,3483.5,0.683]
[1762879180588,3.77579364,3483.6,3483.5,1.183]
[1762879181097,3.77579364,3483.6,3483.5,0.683]
[1762879182693,0.90520001,3483.6,3483.5,0.683]
[1762879183059,0.90520001,3483.6,3483.5,1.183]
[1762879184503,0.41840001,3483.6,3483.5,1.183]
[1762879184799,3.77579364,3483.6,3482.4,0.405504]
[1762879185007,0.0049,3483.5,3482.8,2.87119565]
[1762879185200,2.87084086,3483.3,3483.2,0.5]
[1762879185372,2.87097769,3483.2,3482.6,0.5]
[1762879185573,2.87097769,3483.2,3482.8,0.5]
[1762879185574,2.87117057,3482.9,3482.8,0.5]
[1762879185919,2.87117057,3482.9,3481.5,0.6568]
[1762879186090,0.1412,3482.4,3482.3,0.5]
[1762879186272,0.1412,3482.4,3482.3,1.183]
[1762879186596,0.6075,3482.4,3482.3,1.183]
[1762879186796,1.0955,3482.4,3482.3,1.183]
[1762879186997,1.0955,3482.4,3482.3,0.683]
[1762879187391,3.96708281,3482.4,3482.3,0.683]
[1762879187786,2.87166527,3482.3,3481.8,0.001]
[1762879187970,0.4883,3482.2,3482.0,0.5]
[1762879188163,0.4883,3482.2,3482.1,0.5]
[1762879188363,0.1412,3482.4,3482.1,0.5]
[1762879188364,0.1412,3482.4,3482.1,2.87182952]
[1762879188560,0.6742,3483.0,3482.7,0.5]
[1762879188797,3.3594965,3482.9,3482.8,0.683]
[1762879189202,3.7870965,3482.9,3482.8,0.683]
[1762879190481,3.78707057,3482.9,3482.8,0.683]
[1762879191513,0.9159,3482.9,3482.8,0.683]
[1762879191928,3.78707057,3482.9,3482.8,1.183]
[1762879192605,3.78707057,3482.9,3482.8,1.184]
[1762879192996,3.78707057,3482.9,3482.8,0.684]
[1762879193428,17.70322015,3482.9,3482.8,0.001]
[1762879193628,17.70322015,3482.9,3482.4,0.001]
[1762879193629,2.87150035,3482.5,3482.4,0.001]
[1762879193949,3.56673913,3482.5,3482.4,0.001]
[1762879194145,3.78670035,3482.5,3482.4,0.001]
[1762879195495,0.9152,3482.5,3482.4,0.001]
[1762879195702,3.78670035,3482.5,3482.4,0.501]
[1762879196011,3.78670035,3482.5,3482.4,0.001]
[1762879196662,0.9152,3482.5,3482.4,0.001]
[1762879197550,6.2992,3482.9,3482.6,0.5]
[1762879197851,0.4564,3482.8,3482.7,1.182]
[1762879198048,0.088546,3482.8,3482.7,1.182]
[1762879198255,0.546246,3482.8,3482.7,1.182]
[1762879198417,0.4577,3482.8,3482.7,1.182]
[1762879198833,3.32895301,3482.8,3482.7,1.182]
[1762879199044,0.4577,3482.8,3482.7,0.682]
[1762879199252,3.32895301,3482.8,3482.7,0.682]
[1762879199544,0.4577,3482.8,3482.7,0.682]
[1762879199839,3.32895301,3482.8,3482.7,0.682]
[1762879200209,0.4569,3482.8,3482.7,0.682]
[1762879200414,2.87181058,3483.6,3482.8,2.87125301]
[1762879200612,0.18240001,3483.6,3483.2,0.5]
[1762879200811,2.87075845,3483.4,3483.3,0.682]
[1762879201138,0.0018,3483.3,3482.8,0.5]
[1762879201335,0.0018,3483.3,3482.1,0.6418]
[1762879201336,2.8710936,3483.0,3482.9,0.682]
[1762879201535,2.87133545,3482.7,3482.6,0.5]
[1762879201744,2.87084086,3483.3,3482.6,1.182]
[1762879202038,2.87146507,3482.6,3482.4,0.501]
[1762879202271,2.87150035,3482.5,3482.4,0.501]
[1762879202544,3.04930035,3482.5,3482.4,0.001]
[1762879202838,4.45372436,3482.5,3482.4,0.001]
[1762879208177,9.61918356,3482.5,3482.4,0.001]
[1762879208476,9.34850035,3482.5,3482.4,0.501]
[1762879208767,6.3029,3482.5,3482.4,0.501]
[1762879209241,6.2992,3482.5,3482.4,0.501]
[1762879209445,6.2992,3482.5,3482.4,0.9892]
[1762879209635,6.2992,3482.5,3482.4,0.501]
[1762879210025,6.2992,3482.5,3482.4,0.9892]
[1762879210226,6.2992,3482.5,3482.4,1.66256431]
[1762879210453,6.2992,3482.5,3482.4,4.53414712]
[1762879210658,6.2992,3482.5,3482.4,4.99264712]
[1762879211156,0.002,3482.8,3482.4,4.99264712]
[1762879211323,0.002,3482.8,3482.7,4.26503945]
[1762879211522,0.002,3482.8,3482.7,7.67989346]
[1762879211762,0.002,3482.8,3482.7,8.13839346]
[1762879211962,0.002,3483.2,3483.1,3.77650971]
[1762879212260,0.002,3483.2,3483.1,9.94423471]
[1762879212434,0.002,3483.2,3483.1,5.58750971]
[1762879212634,0.002,3483.2,3483.1,6.83385502]
[1762879214241,0.002,3483.2,3483.1,9.62479002]
[1762879214443,0.002,3483.2,3483.1,6.83385502]
[1762879214827,0.002,3483.2,3483.1,9.38183502]
[1762879215556,0.002,3483.2,3483.1,6.42159182]
[1762879215863,0.002,3483.2,3483.1,7.56209182]
[1762879216068,0.002,3483.2,3483.1,7.10359182]
[1762879216276,0.002,3483.2,3483.1,7.56209182]
[1762879217955,0.4967,3483.2,3483.1,1.74634531]
[1762879218160,0.002,3483.2,3483.1,1.182]
[1762879218355,0.0776,3483.2,3483.1,1.182]
[1762879218556,0.5472,3483.2,3483.1,0.5]
[1762879218759,3.41812328,3483.2,3483.1,0.546]
[1762879219066,3.41812328,3483.2,3483.1,0.682]
[1762879219271,2.87148567,3482.6,3482.4,0.001]
[1762879219581,0.1921,3482.5,3482.4,0.001]
[1762879219755,0.1921,3482.5,3482.4,0.683]
[1762879219960,0.6657,3482.5,3482.4,0.683]
[1762879221287,0.4736,3483.0,3482.4,1.183]
[1762879221588,0.002,3483.2,3483.1,0.5]
[1762879221784,0.002,3483.2,3483.1,1.182]
[1762879221988,2.94852369,3483.2,3483.1,1.182]
[1762879222177,0.0776,3483.2,3483.1,0.682]
[1762879222690,0.002,3483.2,3483.1,1.182]
[1762879222875,0.4967,3483.2,3483.1,0.5]
[1762879223183,0.5514,3483.2,3482.4,0.001]
[1762879223383,0.0547,3483.1,3482.7,0.5]
[1762879223584,2.87138866,3482.7,3482.5,0.5]
[1762879223786,2.87138866,3482.7,3482.6,0.629]
[1762879223987,2.87150035,3482.5,3482.4,0.001]
[1762879224189,3.36620035,3482.5,3482.4,0.001]
[1762879224390,3.42010035,3482.5,3482.4,0.683]
[1762879225553,0.5494,3482.5,3482.4,0.683]
[1762879226051,3.42090035,3482.5,3482.4,0.683]
[1762879229177,3.42090035,3482.5,3482.4,0.633]
[1762879229491,2.87174774,3482.2,3482.1,0.001]
[1762879229793,3.34014774,3482.2,3482.1,0.683]
[1762879230090,4.55468854,3482.2,3482.1,0.001]
[1762879230275,4.82122605,3482.2,3482.1,0.001]
[1762879230476,4.8211848,3482.2,3482.1,0.001]
[1762879231106,5.2266888,3482.2,3482.1,0.001]
[1762879231395,4.00573597,3481.9,3481.8,0.001]
[1762879231596,4.45513223,3481.9,3481.8,0.001]
[1762879231785,4.90973223,3481.9,3481.8,0.001]
[1762879232186,2.87232514,3481.5,3480.5,0.001]
[1762879232367,10.49377472,3481.5,3480.6,0.132]
[1762879232567,11.62035769,3481.5,3480.6,0.132]
[1762879232799,11.21481398,3481.5,3480.6,0.132]
[1762879233097,4.7316052,3481.5,3480.6,0.132]
[1762879233301,1.1382408,3481.5,3480.6,0.132]
[1762879233499,0.0045,3481.5,3480.7,3.33297812]
[1762879233691,0.0045,3481.5,3480.9,2.87379308]
[1762879233999,0.0045,3481.5,3481.0,2.87272903]
[1762879234207,0.0045,3481.5,3480.9,0.001]
[1762879234423,0.4546,3482.4,3481.4,1.1499]
[1762879234571,0.11500217,3482.7,3481.4,0.683]
[1762879234572,2.87214602,3481.8,3481.4,0.683]
[1762879234908,3.15182514,3481.5,3481.4,0.683]
[1762879235202,0.2795,3481.5,3481.4,0.683]
[1762879235764,0.6339,3481.8,3481.4,0.683]
[1762879236098,2.97332514,3481.5,3481.4,0.683]
[1762879236919,3.42172514,3481.5,3481.4,0.001]
[1762879237406,0.5494,3481.5,3481.4,0.001]
[1762879237573,2.87229247,3481.6,3481.4,0.001]
[1762879237779,2.97062514,3481.5,3481.4,0.001]
[1762879238223,2.87257267,3481.2,3481.1,0.011]
[1762879238516,2.87257267,3481.2,3480.2,0.001]
[1762879238517,4.00680866,3480.6,3480.2,0.001]
[1762879238676,10.60037395,3480.3,3480.2,0.001]
[1762879238998,11.10925099,3480.3,3480.2,0.001]
[1762879239190,12.33805538,3480.3,3480.2,0.001]
[1762879239524,12.25294507,3480.3,3480.2,0.001]
[1762879239875,11.81656803,3480.3,3480.2,0.001]
[1762879240894,11.41106403,3480.3,3480.2,0.001]
[1762879241213,11.14537395,3480.3,3480.2,0.001]
[1762879242492,4.07955631,3480.3,3480.2,0.001]
[1762879242879,4.55205631,3480.3,3480.2,0.001]
[1762879243279,4.07955631,3480.3,3480.2,0.001]
[1762879243938,2.94581551,3480.3,3480.2,0.001]
[1762879246197,0.0725,3480.3,3480.2,0.001]
[1762879246404,0.4725,3480.7,3480.2,0.001]
[1762879246405,0.4725,3481.4,3480.2,0.9428]
[1762879246640,6.59331764,3481.1,3480.2,0.501]
[1762879246946,2.87325581,3480.4,3480.2,0.501]
[1762879247300,1.1337408,3481.0,3480.2,0.001]
[1762879247301,2.87331551,3480.3,3480.2,0.001]
[1762879247532,2.95001551,3480.3,3480.2,0.001]
[1762879247732,11.14567395,3480.3,3480.2,0.001]
[1762879247921,11.58205099,3480.3,3480.2,0.001]
[1762879248221,4.41734288,3480.2,3480.1,1e-08]
[1762879248550,4.41734288,3480.2,3479.8,0.001]
[1762879248551,4.00738659,3479.9,3479.8,0.001]
[1762879248704,12.28392497,3479.9,3479.8,0.001]
[1762879249719,15.30392497,3479.9,3479.8,0.001]
[1762879250042,11.60192497,3479.9,3479.8,0.001]
[1762879250828,12.44380601,3479.9,3479.8,0.001]
[1762879252047,12.44380601,3479.9,3479.5,0.001]
[1762879252048,3.27939755,3479.6,3479.5,0.001]
[1762879252254,5.36585909,3479.6,3479.5,0.001]
[1762879252457,6.27473613,3479.6,3479.5,0.001]
[1762879253749,12.57393613,3479.6,3479.5,0.001]
[1762879254524,3.27972795,3479.2,3479.1,0.00100001]
[1762879254723,11.32814337,3479.2,3479.1,0.00100001]
[1762879254914,11.80064337,3479.2,3479.1,0.00100001]
[1762879255633,12.93438417,3479.2,3479.1,0.00100001]
[1762879255955,3.27997581,3478.9,3478.8,0.001]
[1762879256161,5.55443735,3478.9,3478.8,0.001]
[1762879256358,6.46651439,3478.9,3478.8,0.001]
[1762879256561,4.00879111,3478.2,3478.1,0.01]
[1762879256762,11.34492949,3478.2,3478.1,0.01]
[1762879256962,11.41662949,3478.2,3478.1,0.01]
[1762879257335,12.09862949,3478.2,3478.1,0.01]
[1762879257550,12.50413349,3478.2,3478.1,1e-08]
[1762879258267,4.82331185,3478.2,3478.1,1e-08]
[1762879258430,5.91081585,3478.2,3478.1,1e-08]
[1762879258967,2.87587714,3477.2,3477.1,0.01]
[1762879259261,10.69693558,3477.2,3477.1,0.01]
[1762879259473,0.26541346,3477.2,3477.1,1.1379]
[1762879259681,0.26541346,3477.2,3477.1,0.6539]
[1762879259682,3.1412906,3477.2,3477.1,0.6539]
[1762879259856,2.87587714,3477.2,3477.1,1.1379]
[1762879260591,6.59331764,3478.1,3477.1,1.6379]
[1762879260732,0.26552458,3478.0,3477.5,0.5]
[1762879260928,1.1337408,3478.0,3477.9,0.4617]
[1762879261133,0.26555652,3478.0,3477.9,0.9457]
[1762879261434,2.87430657,3479.1,3477.9,1.37782172]
[1762879261663,0.26561767,3479.0,3478.2,0.9617]
[1762879261974,0.26561767,3478.9,3478.2,0.4617]
[1762879262158,0.26561767,3478.8,3478.4,0.5]
[1762879262399,1.1337408,3478.8,3478.7,0.4617]
[1762879262689,2.87389355,3479.6,3478.7,1.4457]
[1762879262832,2.87453823,3478.9,3478.8,0.4617]
[1762879263032,2.87453823,3478.9,3478.3,0.1822]
[1762879263033,0.26569461,3478.9,3478.3,0.6822]
[1762879263248,0.26569461,3478.8,3478.4,0.484]
[1762879263458,0.26569461,3478.8,3478.4,0.984]
[1762879263645,6.59331764,3479.5,3478.7,0.9617]
[1762879263858,2.87422395,3479.2,3479.1,0.4617]
[1762879264038,3.13997693,3479.2,3479.1,0.4617]
[1762879264235,3.13997693,3479.2,3479.1,0.6439]
[1762879264437,0.26575298,3479.2,3479.1,1.1279]
[1762879264639,0.01,3479.9,3479.1,1.79069]
[1762879264900,0.2659178,3479.8,3479.2,0.51274223]
[1762879265038,0.01,3479.9,3479.4,2.87400002]
[1762879265381,0.012,3479.9,3479.8,0.9617]
[1762879265882,0.012,3479.9,3479.8,1.4457]
[1762879266044,0.012,3479.9,3479.8,1.59027]
[1762879266373,0.012,3479.9,3479.8,4.46399837]
[1762879266578,0.002,3480.6,3479.9,0.405504]
[1762879266739,0.002,3480.6,3480.5,0.5]
[1762879266935,0.002,3480.6,3480.5,3.8348504]
[1762879267163,0.002,3480.6,3480.5,4.98966515]
[1762879267373,0.002,3480.6,3480.5,2.11651475]
[1762879267532,2.87506786,3480.6,3480.5,0.4617]
[1762879267749,0.26846613,3480.6,3480.1,0.682]
[1762879267951,2.87334303,3480.3,3480.1,0.682]
[1762879268151,2.87339808,3480.2,3480.1,0.682]
[1762879268445,3.14001755,3480.2,3480.1,0.682]
[1762879270387,0.26661947,3480.2,3480.1,1.1437]
[1762879270747,0.26661947,3480.2,3480.1,2.1277]
[1762879270948,0.002,3480.6,3480.5,0.5]
[1762879271147,0.002,3480.6,3480.5,3.8348504]
[1762879271372,0.002,3480.6,3480.5,1.4457]
[1762879271761,0.002,3480.6,3480.5,4.3188504]
[1762879272167,0.0092,3480.9,3480.8,3.33460278]
[1762879272391,0.0092,3480.9,3480.8,4.51660278]
[1762879272545,0.0092,3480.9,3480.8,5.0293318]
[1762879272749,0.0092,3480.9,3480.8,5.79083568]
[1762879275346,0.0092,3480.9,3480.8,7.33008048]
[1762879275658,0.002,3481.8,3481.7,2.87216015]
[1762879275864,0.002,3481.8,3481.7,4.51486015]
[1762879276061,0.002,3481.8,3481.7,4.99886015]
[1762879276366,0.01,3481.9,3481.7,6.2384184]
[1762879276548,0.002,3482.5,3482.4,2.87158281]
[1762879276750,0.002,3482.5,3482.4,4.51428281]
[1762879276950,0.002,3482.5,3482.4,4.99828281]
[1762879277268,0.002,3482.5,3482.4,5.78528565]
[1762879277493,0.002,3482.5,3482.4,6.19078965]
[1762879279314,0.002,3482.5,3482.4,2.23270284]
[1762879279619,0.002,3482.5,3482.4,2.1267]
[1762879280290,0.002,3482.5,3482.4,0.9617]
[1762879280499,2.87350035,3482.5,3481.6,0.1822]
[1762879280682,0.002,3482.5,3482.4,0.9617]
[1762879280881,0.002,3482.5,3482.4,4.51428281]
[1762879281080,0.002,3482.5,3482.4,2.1267]
[1762879281299,0.002,3482.5,3482.4,1.6427]
[1762879281509,0.002,3482.5,3482.4,1.181]
[1762879281696,0.002,3482.5,3482.4,4.99828281]
[1762879281907,0.002,3482.5,3482.4,5.81399451]
[1762879282083,0.002,3482.5,3482.4,2.91369588]
[1762879282282,0.002,3482.5,3482.4,5.78527869]
[1762879282508,0.002,3482.5,3482.4,2.91369588]
[1762879282708,0.002,3482.5,3482.4,5.78527869]
[1762879284031,0.002,3482.5,3482.4,7.32452349]
[1762879284201,0.012,3482.9,3482.7,3.77683945]
[1762879284404,0.012,3482.9,3482.7,6.20459985]
[1762879284598,0.012,3482.9,3482.7,6.68859985]
[1762879285156,0.012,3482.9,3482.7,6.28309585]
[1762879285305,0.012,3482.9,3482.7,4.99803545]
[1762879286518,0.012,3482.9,3482.7,2.1267]
[1762879286847,0.012,3482.9,3482.7,4.99803545]
[1762879287343,0.012,3482.9,3482.7,1.6427]
[1762879287513,0.012,3482.9,3482.7,4.51403545]
[1762879287715,0.012,3482.9,3482.7,5.69729462]
[1762879287914,0.012,3482.9,3482.7,7.23653942]
[1762879288114,0.012,3482.9,3482.8,4.50499381]
[1762879288314,0.012,3482.9,3482.8,8.90196681]
[1762879289007,0.012,3482.9,3482.8,12.30193981]
[1762879289207,0.012,3482.9,3482.8,12.75150567]
[1762879289409,0.012,3482.9,3482.8,11.67050567]
[1762879290108,0.012,3482.9,3482.8,8.46993567]
[1762879290762,0.012,3482.9,3482.8,5.86939781]
[1762879290961,0.012,3482.9,3482.8,0.962]
[1762879291123,0.012,3482.9,3482.8,1.643]
[1762879291817,0.012,3482.9,3482.8,4.51425301]
[1762879292024,0.012,3482.9,3482.8,5.01115301]
[1762879292261,0.012,3482.9,3482.8,7.33865347]
[1762879293353,0.012,3482.9,3482.8,9.94235747]
[1762879293542,0.012,3482.9,3482.8,7.33865347]
[1762879294544,0.012,3482.9,3482.8,6.93314947]
[1762879294744,0.012,3482.9,3482.8,5.30250867]
[1762879295183,0.012,3482.9,3482.8,4.05225301]
[1762879295378,0.012,3482.9,3482.8,0.5]
[1762879295684,0.012,3482.9,3482.8,4.05225301]
[1762879295893,0.012,3482.9,3482.8,5.01115301]
[1762879296061,0.012,3482.9,3482.8,5.41665701]
[1762879296297,0.0112,3482.9,3482.8,6.90478874]
[1762879296842,0.0112,3482.9,3482.8,7.53852954]
[1762879297152,0.0112,3482.9,3482.8,8.03852954]
[1762879297557,0.0112,3482.9,3482.8,7.35752954]
[1762879297745,0.0112,3482.9,3482.8,8.03852954]
[1762879298081,0.0112,3482.9,3482.8,6.55039781]
[1762879298281,0.0112,3482.9,3482.8,2.0957408]
[1762879298578,0.0112,3482.9,3482.8,6.14489381]
[1762879300797,0.0112,3482.9,3482.8,6.14589381]
[1762879302478,0.0112,3482.9,3482.8,4.51525301]
[1762879302658,0.0112,3482.9,3482.8,3.37225301]
[1762879302859,0.0112,3482.9,3482.8,4.05325301]
[1762879303454,0.0112,3482.9,3482.8,1.182]
[1762879303651,0.0112,3482.9,3482.8,4.05325301]
[1762879303874,0.0112,3482.9,3482.8,0.501]
[1762879304075,0.0112,3482.9,3482.8,1.182]
[1762879305076,0.0112,3482.9,3482.8,0.501]
[1762879305390,0.27931126,3482.9,3482.8,1.182]
[1762879305958,0.0112,3482.9,3482.8,1.182]
[1762879306272,0.36442082,3482.9,3482.8,1.182]
[1762879306491,0.27952082,3482.9,3482.8,4.05325301]
[1762879306787,0.27952082,3482.9,3482.8,4.51525301]
[1762879306962,0.27952082,3482.9,3482.8,4.54396554]
[1762879307162,0.27952082,3482.9,3482.8,5.80337362]
[1762879307489,0.0112,3482.9,3482.8,5.80337362]
[1762879308153,0.0112,3482.9,3482.8,5.30647362]
[1762879308354,1e-08,3482.9,3482.8,25.22617742]
[1762879308557,1e-08,3482.9,3482.8,19.66199142]
[1762879308770,1e-08,3482.9,3482.8,19.43950642]
[1762879309053,1e-08,3482.9,3482.8,16.69554542]
[1762879310271,0.002,3483.5,3483.3,0.405504]
[1762879310472,0.002,3483.5,3483.4,21.70670971]
[1762879310673,1e-08,3483.9,3483.8,3.27593284]
[1762879310877,1e-08,3483.9,3483.8,16.82597012]
[1762879311075,1e-08,3483.9,3483.8,18.61820664]
[1762879311473,1e-08,3483.9,3483.8,6.54957364]
[1762879311673,1e-08,3483.9,3483.8,36.02276134]
[1762879312001,1e-08,3483.9,3483.8,35.21439964]
[1762879312181,1e-08,3483.9,3483.8,34.85962664]
[1762879312383,1e-08,3483.9,3483.8,35.05473164]
[1762879313462,1e-08,3483.9,3483.8,35.40429264]
[1762879313664,1e-08,3483.9,3483.8,38.15113034]
[1762879314602,1e-08,3483.9,3483.8,39.29641134]
[1762879315205,0.002,3484.6,3484.5,4.909097]
[1762879315408,0.002,3484.6,3484.5,26.91509173]
[1762879315703,0.002,3484.6,3484.5,27.00181373]
[1762879315867,0.002,3484.6,3484.5,29.74865143]
[1762879316209,0.002,3484.6,3484.5,24.06017443]
[1762879316704,0.002,3484.6,3484.5,28.19747443]
[1762879317557,0.002,3484.6,3484.5,15.74418643]
[1762879317798,0.002,3484.6,3484.5,26.40249543]
[1762879318201,0.01,3484.9,3484.5,26.40249543]
[1762879318202,1e-08,3484.9,3484.8,4.25080914]
[1762879318406,1e-08,3484.9,3484.8,6.06454994]
[1762879318706,1e-08,3484.9,3484.8,36.52854994]
[1762879320191,0.00120001,3485.0,3484.9,4.40876759]
[1762879320379,0.00120001,3485.0,3484.9,20.11015329]
[1762879320698,0.00120001,3485.0,3484.9,16.07696329]
[1762879320907,0.00120001,3485.0,3484.9,13.85037329]
[1762879321202,1e-08,3485.3,3485.2,5.07052059]
[1762879321363,1e-08,3485.3,3485.2,12.73537232]
[1762879321565,1e-08,3485.3,3485.2,11.33614329]
[1762879321763,1e-08,3485.3,3485.2,23.38690229]
[1762879321976,1e-08,3485.3,3485.2,28.00112129]
[1762879322277,0.6685,3487.0,3485.2,28.00112129]
[1762879322278,1e-08,3485.9,3485.8,1.370404]
[1762879322479,1e-08,3485.9,3485.8,13.00177844]
[1762879322686,1e-08,3485.9,3485.8,29.83519214]
[1762879322891,1e-08,3485.9,3485.8,26.23672514]
[1762879323087,1e-08,3485.9,3485.8,25.95893914]
[1762879323288,1e-08,3485.9,3485.8,21.57366214]
[1762879323616,1e-08,3485.9,3485.8,19.04579714]
[1762879323838,2.86654322,3488.6,3485.8,19.04579714]
[1762879323839,0.187,3488.4,3486.8,3.27346316]
[1762879324051,0.187,3488.4,3486.8,12.53695569]
[1762879324052,0.4774,3487.8,3486.8,12.53695569]
[1762879325195,0.51504907,3488.2,3486.8,12.53695569]
[1762879325396,0.4774,3487.6,3486.8,12.53695569]
[1762879325791,3.05351657,3488.2,3486.8,13.00095569]
[1762879326117,0.4774,3488.0,3486.8,13.00095569]
[1762879326617,0.4774,3487.7,3486.8,12.53695569]
[1762879326980,3.62727691,3486.9,3485.9,1.90457971]
[1762879327192,0.0009,3486.7,3486.6,0.5]
[1762879327418,0.0009,3486.7,3486.6,1.18]
[1762879327586,0.4783,3486.7,3486.6,1.18]
[1762879328175,3.34634141,3486.7,3486.6,1.18]
[1762879328819,3.34634141,3486.7,3486.6,0.68]
[1762879329120,3.34634141,3486.7,3486.6,1.18]
[1762879329622,0.0009,3486.7,3486.6,1.18]
[1762879329820,3.34634141,3486.7,3486.6,1.18]
[1762879330150,0.4783,3486.7,3486.6,1.18]
[1762879330286,3.34634141,3486.7,3486.6,1.18]
[1762879330721,3.69877381,3486.7,3486.6,0.68]
[1762879330921,3.34634141,3486.7,3486.6,0.68]
[1762879331219,3.34634141,3486.7,3485.8,0.5]
[1762879331220,2.86870132,3485.9,3485.8,0.5]
[1762879331417,0.4774,3486.6,3486.2,0.5]
[1762879331626,2.86837047,3486.3,3486.2,0.5]
[1762879331824,0.182,3485.9,3484.5,6.94885173]
[1762879332123,0.182,3485.9,3485.8,0.5]
[1762879332308,0.182,3485.9,3485.8,1.18]
[1762879332511,0.4774,3486.6,3485.8,0.70868781]
[1762879332819,2.86804141,3486.7,3486.6,0.5]
[1762879333006,2.86804141,3486.7,3486.6,1.18]
[1762879333213,3.43264141,3486.7,3486.6,1.18]
[1762879333414,0.191,3486.9,3486.6,3.54809633]
[1762879333613,0.192,3486.9,3486.8,0.5]
[1762879333817,0.6721,3486.9,3486.8,0.5]
[1762879334218,0.7595,3486.9,3486.8,0.5]
[1762879334591,0.6721,3486.9,3486.8,3.36795916]
[1762879334827,0.01,3486.9,3486.8,0.5]
[1762879335026,0.6682,3486.9,3486.8,0.5]
[1762879335338,0.6702,3486.9,3486.8,0.5]
[1762879336009,3.62937691,3486.9,3486.8,0.5]
[1762879337008,2.86804141,3486.7,3486.6,0.68]
[1762879337206,2.86804141,3486.7,3486.6,1.18]
[1762879337207,0.0009,3486.7,3486.6,1.18]
[1762879337661,0.194,3486.9,3486.6,0.68]
[1762879337807,0.194,3486.9,3486.8,3.36795916]
[1762879337808,0.012,3486.9,3486.8,3.36795916]
[1762879338011,0.012,3486.9,3486.8,0.5]
[1762879338931,0.2832,3486.9,3486.8,0.5]
[1762879339134,0.012,3486.9,3486.8,0.5]
[1762879340133,0.012,3486.9,3486.8,3.36795916]
[1762879340300,0.012,3486.9,3486.8,0.5]
[1762879340939,0.012,3486.9,3486.8,4.35104001]
[1762879341101,0.012,3486.9,3486.8,6.35428481]
[1762879342327,0.002,3487.3,3487.2,3.77313419]
[1762879342529,0.002,3487.3,3487.2,6.24887499]
[1762879342728,0.002,3487.3,3487.2,6.05177499]
[1762879342960,0.002,3487.3,3487.2,6.94372474]
[1762879343478,0.002,3487.3,3487.2,2.3137408]
[1762879343773,0.002,3487.3,3487.2,5.18137099]
[1762879344131,0.0012,3487.3,3487.2,5.18137099]
[1762879344371,0.0012,3487.3,3487.2,2.3137408]
[1762879344556,0.0959,3487.3,3487.2,1.18]
[1762879344758,0.0012,3487.3,3487.2,1.18]
[1762879344958,0.0012,3487.3,3487.2,5.38203419]
[1762879345162,0.0012,3487.3,3487.2,7.34075133]